fUSD/lending_fUSD_20240520
["ID","MTS","AMOUNT","RATE_DAILY","PERIOD"]
[327591178,1716246658699,-500.0,0.0003863,6]
[327591179,1716246658708,-500.0,0.0003863,6]
[327591180,1716246658718,-500.0,0.0003863,6]
[327591181,1716246658728,-500.0,0.0003863,6]
[327591182,1716246658737,-500.0,0.0003863,6]
[327591183,1716246658747,-716.2,0.0003863,6]
[327591184,1716246658756,-627.92,0.0003863,6]
[327591185,1716246658766,-500.0,0.0003863,2]
[327591186,1716246658776,-500.0,0.0003863,6]
[327591187,1716246658786,-709.67,0.0003863,6]
[327591188,1716246658796,-500.0,0.0003863,6]
[327591189,1716246658806,-1416.62,0.0003863,6]
[327591190,1716246658815,-1285.82,0.0003863,6]
[327591191,1716246658824,-1184.9,0.0003863,6]
[327591192,1716246658833,-939.67,0.0003863,6]
[327591193,1716246658843,-602.76,0.0003863,6]
[327591194,1716246658852,-500.0,0.0003863,6]
[327591195,1716246658861,-1140.97,0.0003863,6]
[327591196,1716246658871,-500.0,0.0003863,6]
[327591197,1716246658882,-290.92768892,0.0003863,6]
[327591198,1716246658892,-500.0,0.0003863,6]
[327591199,1716246658904,-879.29,0.0003863,6]
[327591200,1716246658914,-854.23,0.0003863,6]
[327591201,1716246658923,-1264.74,0.0003863,6]
[327591202,1716246658934,-1105.1,0.0003863,6]
[327591203,1716246658944,-1092.97,0.0003863,6]
[327591204,1716246658956,-1545.89,0.0003863,6]
[327591205,1716246658965,-500.0,0.0003863,6]
[327591206,1716246658975,-584.91,0.0003863,6]
[327591207,1716246658984,-500.0,0.0003863,6]
[327591208,1716246658993,-500.0,0.0003863,6]
[327591209,1716246659002,-500.0,0.0003863,6]
[327591210,1716246659012,-500.0,0.0003863,2]
[327591211,1716246659021,-500.0,0.0003863,6]
[327591212,1716246659033,-500.0,0.0003863,6]
[327591213,1716246659043,-1912.95,0.0003863,6]
[327591214,1716246659053,-788.86,0.0003863,6]
[327591215,1716246659063,-500.0,0.0003863,6]
[327591216,1716246659073,-500.0,0.0003863,6]
[327591217,1716246659085,-500.0,0.0003863,6]
[327591218,1716246659094,-500.0,0.0003863,6]
[327591219,1716246659103,-353.551951,0.0003863,6]
[327591220,1716246659112,-500.0,0.0003863,6]
[327591221,1716246659121,-1492.34,0.0003863,6]
[327591222,1716246659131,-500.0,0.0003863,6]
[327591223,1716246659140,-512.1760249,0.0003863,6]
[327591224,1716246659149,-613.68,0.0003863,6]
[327591225,1716246659159,-612.57,0.0003863,6]
[327591226,1716246659168,-500.0,0.0003863,6]
[327591227,1716246659177,-592.41,0.0003863,6]
[327591228,1716246659186,-500.0,0.0003863,6]
[327591229,1716246659195,-500.0,0.0003863,6]
[327591230,1716246659205,-500.0,0.0003863,6]
[327591231,1716246659214,-926.58,0.0003863,6]
[327591232,1716246659224,-500.0,0.0003863,6]
[327591233,1716246659233,-2000.0,0.0003863,6]
[327591234,1716246659243,-500.0,0.0003863,6]
[327591235,1716246659254,-642.72,0.0003863,6]
[327591236,1716246659268,-500.0,0.0003863,6]
[327591237,1716246659281,-500.0,0.0003863,6]
[327591238,1716246659290,-671.44,0.0003863,6]
[327591239,1716246659300,-500.0,0.0003863,6]
[327591240,1716246659311,-500.0,0.0003863,6]
[327591241,1716246659322,-500.0,0.0003863,6]
[327591242,1716246659334,-500.0,0.0003863,6]
[327591243,1716246659343,-500.0,0.0003863,6]
[327591244,1716246659356,-658.12,0.0003863,6]
[327591245,1716246659366,-500.0,0.0003863,6]
[327591246,1716246659375,-500.0,0.0003863,6]
[327591247,1716246659384,-500.0,0.0003863,6]
[327591248,1716246659394,-679.55,0.0003863,6]
[327591249,1716246659403,-500.0,0.0003863,6]
[327591250,1716246659412,-500.0,0.0003863,2]
[327591251,1716246659422,-500.0,0.0003863,6]
[327591252,1716246659431,-500.0,0.0003863,6]
[327591253,1716246659440,-586.03,0.0003863,6]
[327591254,1716246659449,-548.26,0.0003863,6]
[327591255,1716246659458,-500.0,0.0003863,6]
[327591256,1716246659468,-500.0,0.0003863,6]
[327591257,1716246659478,-500.0,0.0003863,6]
[327591258,1716246659487,-500.0,0.0003863,6]
[327591259,1716246659497,-1512.26,0.0003863,6]
[327591260,1716246659506,-922.44,0.0003863,6]
[327591261,1716246659516,-500.0,0.0003863,6]
[327591262,1716246659526,-500.0,0.0003863,6]
[327591263,1716246659535,-1487.5,0.0003863,6]
[327591264,1716246659544,-1445.67,0.0003863,6]
[327591265,1716246659553,-648.0,0.0003863,6]
[327591266,1716246659562,-500.0,0.0003863,2]
[327591267,1716246659572,-606.0,0.0003863,6]
[327591268,1716246659581,-1353.27,0.0003863,6]
[327591269,1716246659590,-500.0,0.0003863,6]
[327591270,1716246659599,-500.0,0.0003863,6]
[327591271,1716246659608,-2220.61,0.0003863,6]
[327591272,1716246659618,-869.36,0.0003863,6]
[327591273,1716246659627,-500.0,0.0003863,6]
[327591274,1716246659636,-810.05,0.0003863,6]
[327591275,1716246659646,-500.0,0.0003863,6]
[327591276,1716246659655,-543.21,0.0003863,6]
[327591277,1716246659664,-500.0,0.0003863,6]
[327591278,1716246659674,-500.0,0.0003863,6]
[327591279,1716246659683,-500.0,0.0003863,6]
[327591280,1716246659691,-1339.38,0.0003863,6]
[327591281,1716246659701,-500.0,0.0003863,6]
[327591282,1716246659710,-511.34,0.0003863,6]
[327591283,1716246659719,-500.0,0.0003863,6]
[327591284,1716246659728,-524.18,0.0003863,6]
[327591285,1716246659737,-500.0,0.0003863,6]
[327591286,1716246659746,-623.68,0.0003863,6]
[327591287,1716246659755,-500.0,0.0003863,6]
[327591288,1716246659769,-621.04,0.0003863,6]
[327591289,1716246659778,-874.24,0.0003863,6]
[327591290,1716246659787,-500.0,0.0003863,6]
[327591291,1716246659796,-500.0,0.0003863,6]
[327591292,1716246659805,-274.71217648,0.0003863,6]
[327591293,1716246659814,-535.33417723,0.0003863,6]
[327591294,1716246659823,-608.02,0.0003863,6]
[327591295,1716246659833,-500.0,0.0003863,6]
[327591296,1716246659842,-534.58411432,0.0003863,6]
[327591297,1716246659852,-836.02,0.0003863,6]
[327591298,1716246659861,-500.0,0.0003863,6]
[327591299,1716246659871,-500.0,0.0003863,6]
[327591300,1716246659880,-500.0,0.0003863,6]
[327591301,1716246659890,-1078.46,0.0003863,6]
[327591302,1716246659901,-500.0,0.0003863,6]
[327591303,1716246659911,-780.25,0.0003863,6]
[327591304,1716246659920,-500.0,0.0003863,6]
[327591305,1716246659930,-1417.4,0.0003863,6]
[327591306,1716246659939,-820.58,0.0003863,6]
[327591307,1716246659950,-500.0,0.0003863,6]
[327591308,1716246659959,-500.0,0.0003863,6]
[327591309,1716246659969,-500.0,0.0003863,6]
[327591310,1716246659978,-500.0,0.0003863,6]
[327591311,1716246659987,-500.0,0.0003863,6]
[327591312,1716246659997,-521.96526498,0.0003863,6]
[327591313,1716246660007,-500.0,0.0003863,6]
[327591314,1716246660022,-502.53617852,0.0003863,6]
[327591315,1716246660032,-575.96445335,0.0003863,6]
[327591316,1716246660041,-500.0,0.0003863,6]
[327591317,1716246660051,-515.32,0.0003863,6]
[327591318,1716246660060,-1256.05,0.0003863,6]
[327591319,1716246660070,-1339.11,0.0003863,6]
[327591320,1716246660079,-516.67,0.0003863,6]
[327591321,1716246660088,-504.52,0.0003863,6]
[327591322,1716246660097,-500.0,0.0003863,6]
[327591323,1716246660107,-500.0,0.0003863,6]
[327591324,1716246660116,-500.0,0.0003863,6]
[327591325,1716246660125,-500.0,0.0003863,6]
[327591326,1716246660135,-500.0,0.0003863,6]
[327591327,1716246660144,-528.0,0.0003863,6]
[327591328,1716246660154,-1545.28,0.0003863,6]
[327591329,1716246660163,-500.0,0.0003863,6]
[327591330,1716246660173,-500.0,0.0003863,6]
[327591331,1716246660184,-500.0,0.0003863,6]
[327591332,1716246660194,-500.0,0.0003863,6]
[327591333,1716246660204,-500.0,0.0003863,6]
[327591334,1716246660213,-500.0,0.0003863,6]
[327591335,1716246660223,-666.77,0.0003863,6]
[327591336,1716246660232,-505.57978779,0.0003863,6]
[327591337,1716246660242,-542.27,0.0003863,6]
[327591338,1716246660253,-1009.65,0.0003863,6]
[327591339,1716246660270,-500.0,0.0003863,6]
[327591340,1716246660282,-500.0,0.0003863,6]
[327591341,1716246660292,-1368.48,0.0003863,6]
[327591342,1716246660301,-572.6647697,0.0003863,6]
[327591343,1716246660311,-500.0,0.0003863,6]
[327591344,1716246660325,-500.0,0.0003863,6]
[327591345,1716246660335,-548.01,0.0003863,6]
[327591346,1716246660346,-695.19,0.0003863,6]
[327591347,1716246660357,-500.0,0.0003863,6]
[327591348,1716246660366,-590.63,0.0003863,6]
[327591349,1716246660376,-545.77,0.0003863,6]
[327591350,1716246660386,-593.36,0.0003863,6]
[327591351,1716246660396,-1871.27,0.0003863,6]
[327591352,1716246660406,-809.62,0.0003863,6]
[327591353,1716246660415,-1000.0,0.0003863,6]
[327591354,1716246660426,-2843.07,0.0003863,6]
[327591355,1716246660435,-680.07,0.0003863,6]
[327591356,1716246660446,-610.86,0.0003863,6]
[327591357,1716246660456,-500.0,0.0003863,6]
[327591358,1716246660466,-500.0,0.0003863,6]
[327591359,1716246660475,-874.07,0.0003863,6]
[327591360,1716246660485,-500.0,0.0003863,6]
[327591361,1716246660495,-500.0,0.0003863,6]
[327591362,1716246660505,-500.0,0.0003863,6]
[327591363,1716246660519,-500.0,0.0003863,6]
[327591364,1716246660528,-965.17,0.0003863,6]
[327591365,1716246660538,-500.0,0.0003863,6]
[327591366,1716246660548,-500.0,0.0003863,6]
[327591367,1716246660558,-500.0,0.0003863,6]
[327591368,1716246660568,-1657.66,0.0003863,6]
[327591369,1716246660578,-1928.83,0.0003863,6]
[327591370,1716246660588,-500.0,0.0003863,6]
[327591371,1716246660597,-508.72526758,0.0003863,6]
[327591372,1716246660607,-500.0,0.0003863,6]
[327591373,1716246660616,-512.56,0.0003863,6]
[327591374,1716246660626,-500.0,0.0003863,6]
[327591375,1716246660636,-713.35,0.0003863,6]
[327591376,1716246660646,-500.0,0.0003863,6]
[327591377,1716246660656,-905.25,0.0003863,6]
[327591378,1716246660666,-500.0,0.0003863,6]
[327591379,1716246660676,-500.0,0.0003863,6]
[327591380,1716246660686,-655.02,0.0003863,6]
[327591381,1716246660695,-2589.9,0.0003863,6]
[327591382,1716246660705,-750.78,0.0003863,6]
[327591383,1716246660715,-535.99520571,0.0003863,6]
[327591384,1716246660725,-535.28,0.0003863,6]
[327591385,1716246660735,-220.23321945,0.0003863,6]
[327591386,1716246660746,-627.03,0.0003863,6]
[327591387,1716246660757,-1029.48,0.0003863,6]
[327591388,1716246660771,-500.0,0.0003863,6]
[327591389,1716246660781,-500.0,0.0003863,6]
[327591390,1716246660790,-500.0,0.0003863,6]
[327591391,1716246660800,-500.0,0.0003863,2]
[327591392,1716246660810,-500.0,0.0003863,6]
[327591393,1716246660820,-500.0,0.0003863,6]
[327591394,1716246660830,-500.0,0.0003863,6]
[327591395,1716246660840,-500.0,0.0003863,6]
[327591396,1716246660850,-500.0,0.0003863,6]
[327591397,1716246660860,-1245.12,0.0003863,6]
[327591398,1716246660870,-258.28747785,0.0003863,6]
[327591399,1716246660880,-500.0,0.0003863,6]
[327591400,1716246660890,-2349.36,0.0003863,6]
[327591401,1716246660900,-500.0,0.0003863,6]
[327591402,1716246660910,-524.15,0.0003863,6]
[327591403,1716246660919,-500.0,0.0003863,6]
[327591404,1716246660930,-771.31,0.0003863,6]
[327591405,1716246660939,-155.61,0.0003863,6]
[327591406,1716246660949,-500.0,0.0003863,6]
[327591407,1716246660959,-1922.1,0.0003863,6]
[327591408,1716246660968,-500.0,0.0003863,6]
[327591409,1716246660978,-730.92,0.0003863,6]
[327591410,1716246660988,-500.0,0.0003863,6]
[327591411,1716246660999,-500.0,0.0003863,6]
[327591412,1716246661009,-500.0,0.0003863,6]
[327591413,1716246661022,-500.0,0.0003863,6]
[327591414,1716246661032,-518.96,0.0003863,6]
[327591415,1716246661042,-845.4,0.0003863,6]
[327591416,1716246661052,-500.0,0.0003863,6]
[327591417,1716246661062,-555.48599899,0.0003863,6]
[327591418,1716246661071,-500.0,0.0003863,6]
[327591419,1716246661082,-500.0,0.0003863,6]
[327591420,1716246661092,-500.0,0.0003863,6]
[327591421,1716246661103,-500.0,0.0003863,6]
[327591422,1716246661113,-500.0,0.0003863,6]
[327591423,1716246661123,-500.0,0.0003863,6]
[327591424,1716246661133,-943.0,0.0003863,6]
[327591425,1716246661143,-500.0,0.0003863,6]
[327591426,1716246661153,-3076.58682223,0.0003863,6]
[327591427,1716246661163,-2029.67,0.0003863,6]
[327591428,1716246661173,-500.0,0.0003863,6]
[327591429,1716246661184,-500.0,0.0003863,6]
[327591430,1716246661194,-500.0,0.0003863,6]
[327591431,1716246661204,-1632.55,0.0003863,6]
[327591432,1716246661214,-993.96,0.0003863,6]
[327591433,1716246661224,-672.55,0.0003863,6]
[327591434,1716246661234,-500.0,0.0003863,6]
[327591435,1716246661245,-2697.76,0.0003863,6]
[327591436,1716246661255,-500.0,0.0003863,6]
[327591437,1716246661271,-500.0,0.0003863,6]
[327591438,1716246661282,-500.0,0.0003863,6]
[327591439,1716246661293,-500.0,0.0003863,6]
[327591440,1716246661303,-165.45540694,0.0003863,6]
[327591441,1716246661315,-2579.25,0.0003863,6]
[327591442,1716246661325,-500.0,0.0003863,6]
[327591443,1716246661335,-510.08444818,0.0003863,6]
[327591444,1716246661345,-500.0,0.0003863,6]
[327591445,1716246661358,-593.24091126,0.0003863,6]
[327591446,1716246661368,-753.5,0.0003863,6]
[327591447,1716246661377,-500.0,0.0003863,6]
[327591448,1716246661387,-578.4699703,0.0003863,6]
[327591449,1716246661397,-556.27,0.0003863,6]
[327591450,1716246661408,-746.05,0.0003863,6]
[327591451,1716246661417,-500.0,0.0003863,6]
[327591452,1716246661427,-2961.76,0.0003863,6]
[327591453,1716246661437,-503.5,0.0003863,6]
[327591454,1716246661447,-1132.12,0.0003863,6]
[327591455,1716246661458,-927.4,0.0003863,6]
[327591456,1716246661467,-500.0,0.0003863,6]
[327591457,1716246661477,-2461.65,0.0003863,6]
[327591458,1716246661488,-500.0,0.0003863,6]
[327591459,1716246661498,-195.42294972,0.0003863,6]
[327591460,1716246661508,-500.0,0.0003863,6]
[327591461,1716246661520,-572.93,0.0003863,6]
[327591462,1716246661530,-500.0,0.0003863,6]
[327591463,1716246661540,-237.65955882,0.0003863,6]
[327591464,1716246661550,-758.78,0.0003863,6]
[327591465,1716246661560,-941.32,0.0003863,6]
[327591466,1716246661571,-647.92,0.0003863,6]
[327591467,1716246661580,-754.24,0.0003863,6]
[327591468,1716246661590,-927.56,0.0003863,6]
[327591469,1716246661600,-985.81,0.0003863,6]
[327591470,1716246661610,-424.67959088,0.0003863,6]
[327591471,1716246661621,-500.0,0.0003863,6]
[327591472,1716246661631,-500.0,0.0003863,6]
[327591473,1716246661641,-500.0,0.0003863,6]
[327591474,1716246661651,-500.0,0.0003863,6]
[327591475,1716246661663,-500.0,0.0003863,6]
[327591476,1716246661673,-500.0,0.0003863,6]
[327591477,1716246661683,-1104.02,0.0003863,6]
[327591478,1716246661693,-500.0,0.0003863,6]
[327591479,1716246661703,-500.0,0.0003863,6]
[327591480,1716246661712,-500.0,0.0003863,6]
[327591481,1716246661722,-500.0,0.0003863,6]
[327591482,1716246661732,-217.6588717,0.0003863,6]
[327591483,1716246661742,-792.6,0.0003863,6]
[327591484,1716246661752,-500.0,0.0003863,6]
[327591485,1716246661764,-500.0,0.0003863,6]
[327591486,1716246661774,-500.0,0.0003863,6]
[327591487,1716246661784,-500.0,0.0003863,6]
[327591488,1716246661794,-500.0,0.0003863,6]
[327591489,1716246661803,-634.79,0.0003863,6]
[327591490,1716246661813,-831.31,0.0003863,6]
[327591491,1716246661822,-1259.65,0.0003863,6]
[327591492,1716246661832,-736.73,0.0003863,6]
[327591493,1716246661842,-1076.13,0.0003863,6]
[327591494,1716246661852,-500.0,0.0003863,6]
[327591495,1716246661861,-500.0,0.0003863,6]
[327591496,1716246661871,-500.0,0.0003863,6]
[327591497,1716246661881,-500.0,0.0003863,6]
[327591498,1716246661890,-708.05,0.0003863,6]
[327591499,1716246661900,-500.0,0.0003863,6]
[327591500,1716246661910,-799.55,0.0003863,6]
[327591501,1716246661920,-500.0,0.0003863,6]
[327591502,1716246661930,-629.4424775,0.0003863,6]
[327591503,1716246661939,-525.88,0.0003863,6]
[327591504,1716246661949,-500.0,0.0003863,6]
[327591505,1716246661969,-500.0,0.0003863,6]
[327591506,1716246661982,-500.0,0.0003863,6]
[327591507,1716246661993,-557.25,0.0003863,6]
[327591508,1716246662004,-895.98,0.0003863,6]
[327591509,1716246662017,-1539.84,0.0003863,6]
[327591510,1716246662029,-1421.85,0.0003863,6]
[327591511,1716246662041,-662.61,0.0003863,6]
[327591512,1716246662052,-1435.77,0.0003863,6]
[327591513,1716246662063,-2414.62,0.0003863,6]
[327591514,1716246662073,-500.0,0.0003863,6]
[327591515,1716246662084,-500.0,0.0003863,6]
[327591516,1716246662095,-879.69,0.0003863,6]
[327591517,1716246662106,-951.29,0.0003863,6]
[327591518,1716246662116,-604.04,0.0003863,6]
[327591519,1716246662127,-500.0,0.0003863,6]
[327591520,1716246662138,-500.0,0.0003863,6]
[327591521,1716246662149,-213.04033501,0.0003863,6]
[327591522,1716246662160,-3136.74,0.0003863,6]
[327591523,1716246662170,-1442.9,0.0003863,6]
[327591524,1716246662181,-1961.17,0.0003863,6]
[327591525,1716246662192,-500.0,0.0003863,6]
[327591526,1716246662202,-791.88,0.0003863,6]
[327591527,1716246662213,-894.39,0.0003863,6]
[327591528,1716246662223,-500.0,0.0003863,6]
[327591529,1716246662233,-500.0,0.0003863,6]
[327591530,1716246662244,-725.42,0.0003863,6]
[327591531,1716246662254,-500.0,0.0003863,6]
[327591532,1716246662269,-500.0,0.0003863,6]
[327591533,1716246662280,-1938.62,0.0003863,6]
[327591534,1716246662290,-558.95952217,0.0003863,6]
[327591535,1716246662301,-4036.03,0.0003863,6]
[327591536,1716246662311,-1362.4,0.0003863,6]
[327591537,1716246662322,-780.48,0.0003863,6]
[327591538,1716246662333,-500.0,0.0003863,6]
[327591539,1716246662344,-500.0,0.0003863,6]
[327591540,1716246662359,-807.71,0.0003863,6]
[327591541,1716246662370,-3051.63,0.0003863,6]
[327591542,1716246662382,-500.0,0.0003863,6]
[327591543,1716246662393,-2414.61,0.0003863,6]
[327591544,1716246662404,-500.0,0.0003863,6]
[327591545,1716246662736,-1130.78,0.0003863,6]
[327591546,1716246662772,-500.0,0.0003863,6]
[327591547,1716246662782,-695.86,0.0003863,6]
[327591548,1716246662791,-12639.53,0.0003863,6]
[327591549,1716246662800,-2271.07,0.0003863,6]
[327591550,1716246662809,-1137.07,0.0003863,6]
[327591551,1716246662818,-500.0,0.0003863,6]
[327591552,1716246662828,-718.61,0.0003863,6]
[327591553,1716246662837,-574.89,0.0003863,6]
[327591554,1716246662846,-500.0,0.0003863,6]
[327591555,1716246662855,-500.0,0.0003863,6]
[327591556,1716246662865,-2685.19,0.0003863,6]
[327591557,1716246662874,-963.56,0.0003863,6]
[327591558,1716246662883,-422.19451023,0.0003863,6]
[327591559,1716246662892,-611.78,0.0003863,6]
[327591560,1716246662901,-500.0,0.0003863,6]
[327591561,1716246662911,-500.0,0.0003863,6]
[327591562,1716246662919,-500.0,0.0003863,6]
[327591563,1716246662929,-500.0,0.0003863,6]
[327591564,1716246662938,-971.36,0.0003863,6]
[327591565,1716246662948,-947.87,0.0003863,6]
[327591566,1716246662957,-500.0,0.0003863,6]
[327591567,1716246662966,-500.0,0.0003863,6]
[327591568,1716246662976,-571.47,0.0003863,6]
[327591569,1716246662985,-500.0,0.0003863,6]
[327591570,1716246662994,-944.79,0.0003863,6]
[327591571,1716246663003,-500.0,0.0003863,6]
[327591572,1716246663013,-500.0,0.0003863,6]
[327591573,1716246663023,-1067.43,0.0003863,6]
[327591574,1716246663033,-500.0,0.0003863,6]
[327591575,1716246663042,-562.5,0.0003863,6]
[327591576,1716246663052,-500.0,0.0003863,6]
[327591577,1716246663061,-683.74,0.0003863,6]
[327591578,1716246663071,-500.0,0.0003863,6]
[327591579,1716246663080,-1724.29,0.0003863,6]
[327591580,1716246663091,-923.34,0.0003863,6]
[327591581,1716246663102,-500.0,0.0003863,6]
[327591582,1716246663112,-511.42039592,0.0003863,6]
[327591583,1716246663121,-500.0,0.0003863,6]
[327591584,1716246663132,-779.79,0.0003863,6]
[327591585,1716246663141,-538.4153469,0.0003863,6]
[327591586,1716246663151,-502.0,0.0003863,6]
[327591587,1716246663161,-1525.72,0.0003863,6]
[327591588,1716246663171,-2922.18,0.0003863,6]
[327591589,1716246663181,-500.0,0.0003863,6]
[327591590,1716246663192,-1161.04,0.0003863,6]
[327591591,1716246663201,-500.0,0.0003863,6]
[327591592,1716246663211,-500.0,0.0003863,6]
[327591593,1716246663220,-524.13,0.0003863,6]
[327591594,1716246663230,-500.0,0.0003863,6]
[327591595,1716246663240,-545.77,0.0003863,6]
[327591596,1716246663249,-500.0,0.0003863,6]
[327591597,1716246663258,-630.03,0.0003863,6]
[327591598,1716246663272,-861.32,0.0003863,6]
[327591599,1716246663286,-500.0,0.0003863,6]
[327591600,1716246663295,-500.0,0.0003863,6]
[327591601,1716246663305,-2128.47,0.0003863,6]
[327591602,1716246663314,-500.0,0.0003863,6]
[327591603,1716246663325,-500.0,0.0003863,6]
[327591604,1716246663335,-500.0,0.0003863,6]
[327591605,1716246663345,-2220.7,0.0003863,6]
[327591606,1716246663354,-914.66,0.0003863,6]
[327591607,1716246663366,-500.0,0.0003863,6]
[327591608,1716246663376,-500.0,0.0003863,6]
[327591609,1716246663385,-911.76,0.0003863,6]
[327591610,1716246663394,-500.0,0.0003863,6]
[327591611,1716246663404,-500.0,0.0003863,6]
[327591612,1716246663413,-500.0,0.0003863,6]
[327591613,1716246663422,-500.0,0.0003863,6]
[327591614,1716246663432,-14835.39,0.0003863,6]
[327591615,1716246663441,-500.0,0.0003863,6]
[327591616,1716246663450,-500.0,0.0003863,6]
[327591617,1716246663460,-1136.76,0.0003863,6]
[327591618,1716246663470,-500.0,0.0003863,6]
[327591619,1716246663480,-1076.64,0.0003863,6]
[327591620,1716246663489,-500.0,0.0003863,6]
[327591621,1716246663499,-500.0,0.0003863,6]
[327591622,1716246663509,-300.0,0.0003863,6]
[327591623,1716246663525,-500.0,0.0003863,6]
[327591624,1716246663535,-500.0,0.0003863,6]
[327591625,1716246663544,-1632.26,0.0003863,6]
[327591626,1716246663554,-500.0,0.0003863,6]
[327591627,1716246663564,-3218.12,0.0003863,6]
[327591628,1716246663574,-500.0,0.0003863,6]
[327591629,1716246663583,-2995.28,0.0003863,6]
[327591630,1716246663593,-500.0,0.0003863,6]
[327591631,1716246663603,-500.0,0.0003863,6]
[327591632,1716246663613,-500.0,0.0003863,6]
[327591633,1716246663622,-582.73,0.0003863,6]
[327591634,1716246663632,-841.3,0.0003863,6]
[327591635,1716246663641,-500.0,0.0003863,6]
[327591636,1716246663651,-4565.77,0.0003863,6]
[327591637,1716246663660,-500.0,0.0003863,6]
[327591638,1716246663670,-1994.33,0.0003863,6]
[327591639,1716246663680,-976.12,0.0003863,6]
[327591640,1716246663690,-584.28,0.0003863,6]
[327591641,1716246663700,-597.82,0.0003863,6]
[327591642,1716246663711,-1108.56,0.0003863,6]
[327591643,1716246663721,-2271.52,0.0003863,6]
[327591644,1716246663731,-500.0,0.0003863,6]
[327591645,1716246663741,-1570.11,0.0003863,6]
[327591646,1716246663751,-534.04,0.0003863,6]
[327591647,1716246663761,-500.0,0.0003863,6]
[327591648,1716246663774,-2261.65,0.0003863,6]
[327591649,1716246663784,-792.28,0.0003863,6]
[327591650,1716246663794,-500.0,0.0003863,6]
[327591651,1716246663804,-1993.23,0.0003863,6]
[327591652,1716246663814,-500.0,0.0003863,6]
[327591653,1716246663824,-500.0,0.0003863,6]
[327591654,1716246663834,-500.0,0.0003863,6]
[327591655,1716246663844,-500.0,0.0003863,6]
[327591656,1716246663854,-1301.28,0.0003863,6]
[327591657,1716246663864,-500.0,0.0003863,6]
[327591658,1716246663874,-3748.37,0.0003863,6]
[327591659,1716246663884,-500.0,0.0003863,6]
[327591660,1716246663894,-765.75,0.0003863,6]
[327591661,1716246663904,-1266.67,0.0003863,6]
[327591662,1716246663913,-676.8,0.0003863,6]
[327591663,1716246663922,-500.0,0.0003863,6]
[327591664,1716246663932,-500.0,0.0003863,6]
[327591665,1716246663941,-500.0,0.0003863,6]
[327591666,1716246663950,-500.0,0.0003863,6]
[327591667,1716246663960,-500.0,0.0003863,6]
[327591668,1716246663970,-4952.35,0.0003863,6]
[327591669,1716246663978,-556.5958797,0.0003863,6]
[327591670,1716246663988,-500.0,0.0003863,6]
[327591671,1716246663997,-500.0,0.0003863,6]
[327591672,1716246664006,-500.0,0.0003863,6]
[327591673,1716246664018,-536.36,0.0003863,6]
[327591674,1716246664036,-500.58,0.0003863,6]
[327591675,1716246664048,-590.29,0.0003863,6]
[327591676,1716246664059,-1182.23,0.0003863,6]
[327591677,1716246664068,-1508.14,0.0003863,6]